bitfinex/quotes_SOLUSD_20241028
["timestamp","ask_amount","ask_price","bid_price","bid_amount"]
[1730122167153,23.776884,176.81,176.76,17.29568059]
[1730122167366,17.29568059,176.81,176.76,17.29568059]
[1730122168576,17.29568059,176.81,176.75,17.29568059]
[1730122170459,41.07256459,176.83,176.77,17.29568059]
[1730122170657,41.07256459,176.83,176.73,5.89248473]
[1730122170658,23.31328059,176.84,176.78,17.29568059]
[1730122171260,17.29568059,176.83,176.77,17.29568059]
[1730122171571,17.29990446,176.83,176.77,17.29990446]
[1730122172956,6.0176,176.84,176.78,17.29990446]
[1730122172957,23.31750446,176.84,176.78,17.29990446]
[1730122174277,17.29990446,176.83,176.77,17.29990446]
[1730122174484,17.29990446,176.82,176.76,17.29990446]
[1730122175072,17.29990446,176.82,176.77,17.29990446]
[1730122176158,17.29990446,176.78,176.74,5.89714813]
[1730122176591,11.07839918,176.79,176.74,5.89714813]
[1730122177086,11.07839918,176.78,176.72,11.07839918]
[1730122177285,17.12549,176.81,176.73,11.07839918]
[1730122177286,11.07839918,176.79,176.73,11.07839918]
[1730122177456,11.07839918,176.81,176.75,11.07839918]
[1730122178164,11.07839918,176.8,176.74,11.07839918]
[1730122178883,11.07839918,176.79,176.74,11.07839918]
[1730122179086,87.12549,176.82,176.74,11.07839918]
[1730122179287,11.07839918,176.79,176.73,11.07839918]
[1730122180082,0.12549,176.82,176.74,11.07839918]
[1730122180308,11.07839918,176.81,176.75,11.07839918]
[1730122180799,11.07839918,176.79,176.73,11.07839918]
[1730122181183,11.07839918,176.8,176.74,11.07839918]
[1730122181385,11.07839918,176.81,176.75,11.07839918]
[1730122181585,11.07839918,176.81,176.76,11.07839918]
[1730122182079,11.07839918,176.81,176.75,11.07839918]
[1730122182300,11.07839918,176.8,176.72,5.88152986]
[1730122182502,11.07839918,176.8,176.75,11.07839918]
[1730122182700,11.07839918,176.8,176.74,11.07839918]
[1730122184906,11.07839918,176.79,176.73,11.07839918]
[1730122185299,11.07839918,176.78,176.72,16.95992904]
[1730122185603,11.07839918,176.78,176.73,11.07839918]
[1730122185906,75.78099,176.82,176.72,5.88152986]
[1730122185907,11.07839918,176.77,176.72,16.95992904]
[1730122186113,11.07839918,176.77,176.71,11.07839918]
[1730122186587,11.07839918,176.76,176.7,16.966077]
[1730122186786,16.2504,176.79,176.7,5.88767782]
[1730122186787,11.07839918,176.74,176.7,5.88767782]
[1730122186990,11.07839918,176.74,176.68,11.07839918]
[1730122187209,5.6571,176.77,176.68,11.07839918]
[1730122187390,23.902374,176.76,176.68,11.07839918]
[1730122187717,11.07839918,176.73,176.67,5.88928225]
[1730122187924,11.07839918,176.72,176.67,5.88928225]
[1730122188527,17.32207295,176.72,176.67,23.2113552]
[1730122188698,17.32104003,176.72,176.67,23.21032228]
[1730122189500,17.32104003,176.71,176.67,5.88928225]
[1730122189700,17.32104003,176.7,176.67,5.88928225]
[1730122190001,17.32104003,176.69,176.67,5.88928225]
[1730122190623,17.32104003,176.7,176.67,5.88928225]
[1730122191109,22.0342,176.71,176.67,5.88928225]
[1730122191303,23.902374,176.74,176.68,17.32104003]
[1730122191617,23.902374,176.74,176.67,5.88928225]
[1730122191618,41.22341403,176.74,176.69,17.32104003]
[1730122192329,23.776884,176.74,176.69,17.32104003]
[1730122192715,41.09792403,176.74,176.69,17.32104003]
[1730122193614,23.776884,176.74,176.69,17.32104003]
[1730122196124,23.41404003,176.75,176.7,17.32104003]
[1730122196323,15.781,176.76,176.71,17.32104003]
[1730122196537,17.32104003,176.77,176.72,17.32104003]
[1730122197035,17.32104003,176.78,176.72,17.32104003]
[1730122197329,6.557,176.79,176.76,17.32104003]
[1730122197529,6.557,176.79,176.75,17.32104003]
[1730122198227,23.32784003,176.83,176.78,17.32104003]
[1730122198410,23.32784003,176.83,176.77,17.32104003]
[1730122198729,17.32104003,176.82,176.77,17.32104003]
[1730122199318,17.32104003,176.82,176.76,17.32104003]
[1730122200726,23.776884,176.82,176.77,17.32104003]
[1730122200932,17.32104003,176.81,176.76,17.32104003]
[1730122201119,17.32104003,176.81,176.7,0.12549]
[1730122201120,23.776884,176.8,176.75,17.32104003]
[1730122202635,17.32104003,176.79,176.74,17.32104003]
[1730122202813,41.09792403,176.78,176.72,17.32104003]
[1730122203131,17.32104003,176.75,176.7,17.32104003]
[1730122203332,17.32104003,176.72,176.69,5.88691719]
[1730122203532,17.32104003,176.73,176.69,5.88691719]
[1730122203720,23.776884,176.72,176.69,5.88691719]
[1730122203914,23.59344003,176.76,176.71,17.32104003]
[1730122204133,23.776884,176.75,176.71,17.32104003]
[1730122204637,41.09792403,176.75,176.69,23.20795722]
[1730122205133,17.32104003,176.74,176.69,23.20795722]
[1730122205543,23.776884,176.75,176.7,17.32104003]
[1730122205712,17.32104003,176.73,176.69,5.88691719]
[1730122205911,23.776884,176.75,176.7,17.32104003]
[1730122206116,41.09792403,176.75,176.7,17.32104003]
[1730122206522,41.09792403,176.75,176.69,23.20795722]
[1730122206523,17.32104003,176.74,176.69,23.20795722]
[1730122206715,41.09792403,176.75,176.69,23.20795722]
[1730122208137,6.2724,176.76,176.71,17.32104003]
[1730122208309,6.2724,176.76,176.69,5.88691719]
[1730122208310,6.2724,176.76,176.72,17.32104003]
[1730122208726,6.5472,176.8,176.75,17.32104003]
[1730122208931,6.5472,176.8,176.68,15.0338]
[1730122208932,6.5472,176.8,176.76,17.32104003]
[1730122209333,13.58456207,176.83,176.78,17.32104003]
[1730122209514,13.58456207,176.83,176.79,17.32104003]
[1730122209715,13.58456207,176.83,176.82,17.32104003]
[1730122210112,13.58456207,176.83,176.81,17.32104003]
[1730122210834,13.58456207,176.83,176.8,17.32104003]
[1730122211039,30.9056021,176.83,176.77,17.32104003]
[1730122211238,17.32104003,176.82,176.77,17.32104003]
[1730122211414,17.32104003,176.8,176.74,17.32104003]
[1730122211621,41.09792403,176.78,176.72,17.32104003]
[1730122212338,23.776884,176.78,176.73,17.32104003]
[1730122213139,23.776884,176.78,176.74,17.32104003]
[1730122213636,41.09792403,176.78,176.73,17.32104003]
[1730122213833,41.09792403,176.78,176.72,17.32104003]
[1730122214333,17.32104003,176.76,176.71,17.32104003]
[1730122214512,17.32104003,176.76,176.7,5.88039816]
[1730122214513,17.32104003,176.76,176.7,23.20143819]
[1730122214714,17.32104003,176.73,176.7,5.88039816]
[1730122215136,41.09792403,176.74,176.7,5.88039816]
[1730122215640,23.776884,176.74,176.7,5.88039816]
[1730122215842,41.09792403,176.74,176.7,5.88039816]
[1730122216738,23.776884,176.74,176.7,5.88039816]
[1730122216925,23.776884,176.75,176.71,17.32104003]
[1730122217130,15.4482,176.78,176.74,17.32104003]
[1730122217425,17.32104003,176.79,176.73,17.32104003]
[1730122217815,17.32104003,176.78,176.73,17.32104003]
[1730122218432,41.22341403,176.77,176.71,17.32104003]
[1730122218638,23.776884,176.75,176.7,23.20143819]
[1730122219025,17.32104003,176.75,176.7,23.20143819]
[1730122219241,17.32104003,176.75,176.7,5.88039816]
[1730122219420,41.22341403,176.74,176.7,5.88039816]
[1730122219621,17.32104003,176.73,176.7,5.88039816]
[1730122219851,41.09792403,176.72,176.7,5.88039816]
[1730122220228,23.776884,176.72,176.7,5.88039816]
[1730122220453,41.09792403,176.72,176.7,5.88039816]
[1730122221130,23.776884,176.73,176.7,5.88039816]
[1730122221330,15.9942,176.74,176.7,5.88039816]
[1730122221641,23.776884,176.74,176.7,23.20143819]
[1730122221843,23.776884,176.75,176.7,23.20143819]
[1730122223151,23.776884,176.75,176.71,17.32104003]
[1730122223525,23.776884,176.75,176.7,23.20143819]
[1730122223850,41.09792403,176.75,176.7,5.88039816]
[1730122225334,23.776884,176.73,176.7,5.88039816]
[1730122226148,17.32104003,176.72,176.7,5.88039816]
[1730122226346,23.776884,176.71,176.7,5.88039816]
[1730122226558,41.09792403,176.71,176.7,5.88039816]
[1730122226745,23.776884,176.71,176.7,5.88039816]
[1730122227433,23.902374,176.71,176.7,5.88039816]
[1730122227636,111.34890403,176.71,176.7,5.88039816]
[1730122227934,23.902374,176.67,176.56,15.8611]
[1730122228134,41.09792403,176.66,176.65,5.88156706]
[1730122228338,23.902374,176.65,176.6,17.32104003]
[1730122228534,41.22341403,176.65,176.59,5.88212801]
[1730122228743,41.22341403,176.65,176.59,23.20316804]
[1730122228976,41.22341403,176.65,176.6,17.32104003]
[1730122230542,41.09792403,176.63,176.59,5.88212801]
[1730122230855,17.32104003,176.61,176.59,5.88212801]
[1730122231061,17.32104003,176.61,176.55,17.32104003]
[1730122231359,17.32104003,176.61,176.56,17.32104003]
[1730122231548,41.09792403,176.6,176.55,17.32104003]
[1730122231756,23.776884,176.6,176.56,17.32104003]
[1730122232046,23.902374,176.63,176.59,17.32104003]
[1730122232252,23.902374,176.63,176.54,5.88284853]
[1730122232427,41.22341403,176.63,176.58,17.32104003]
[1730122232623,41.22341403,176.63,176.57,17.32104003]
[1730122232859,41.22341403,176.63,176.58,17.32104003]
[1730122233244,23.776884,176.63,176.58,17.32104003]
[1730122233558,17.32104003,176.62,176.56,17.32104003]
[1730122234050,41.09792403,176.61,176.55,17.32104003]
[1730122234352,23.776884,176.6,176.55,17.32104003]
[1730122235343,41.09792403,176.6,176.55,17.32104003]
[1730122235740,41.09792403,176.6,176.54,23.20388856]
[1730122235933,16.2261,176.64,176.59,17.32104003]
[1730122236132,33.54714003,176.64,176.59,17.32104003]
[1730122236659,16.2261,176.64,176.6,17.32104003]
[1730122237330,23.776884,176.63,176.59,17.32104003]
[1730122237746,23.776884,176.63,176.6,17.32104003]
[1730122237938,23.776884,176.64,176.6,17.32104003]
[1730122238145,23.776884,176.64,176.59,17.32104003]
[1730122238448,23.776884,176.64,176.6,17.32104003]
[1730122239162,109.57494003,176.72,176.63,17.32104003]
[1730122239452,109.57494003,176.72,176.66,17.32104003]
[1730122239654,17.32104003,176.7,176.64,17.32104003]
[1730122239854,17.32104003,176.69,176.63,17.32104003]
[1730122240154,17.32104003,176.67,176.62,17.32104003]
[1730122240360,17.32104003,176.69,176.64,17.32104003]
[1730122240744,23.776884,176.67,176.64,17.32104003]
[1730122241462,30.0,176.71,176.66,17.32104003]
[1730122241759,30.0,176.71,176.68,17.32104003]
[1730122241943,30.0,176.71,176.67,17.32104003]
[1730122242137,30.0,176.71,176.66,17.32104003]
[1730122242138,47.32104003,176.71,176.66,17.32104003]
[1730122242572,47.32104003,176.71,176.58,32.46604003]
[1730122242573,41.09792403,176.68,176.63,17.32104003]
[1730122242741,41.09792403,176.66,176.61,17.32104003]
[1730122242944,0.12549,176.65,176.61,17.32104003]
[1730122243156,75.6589,176.71,176.58,15.145]
[1730122243340,39.57494003,176.72,176.66,17.32104003]
[1730122243659,22.2539,176.72,176.68,17.32104003]
[1730122243848,22.2539,176.72,176.69,17.32104003]
[1730122244050,22.2539,176.72,176.68,17.32104003]
[1730122244676,23.776884,176.71,176.68,17.32104003]
[1730122245352,70.0,176.76,176.7,17.32104003]
[1730122245546,70.0,176.76,176.71,17.32104003]
[1730122245744,70.0,176.76,176.7,17.32104003]
[1730122245745,87.32104003,176.76,176.7,17.32104003]
[1730122246458,17.32104003,176.76,176.7,17.32104003]
[1730122246666,97.70356213,176.75,176.69,27.70356213]
[1730122246860,97.70356213,176.73,176.68,27.70356213]
[1730122247244,70.0,176.7,176.66,27.70356213]
[1730122247445,70.0,176.7,176.65,27.70356213]
[1730122247654,0.12549,176.69,176.65,27.70356213]
[1730122247851,24.027864,176.71,176.67,27.70356213]
[1730122248056,0.12549,176.74,176.7,27.70356213]
[1730122248251,23.902374,176.74,176.7,27.70356213]
[1730122248865,23.902374,176.74,176.69,27.70356213]
[1730122249579,51.60593613,176.74,176.68,27.70356213]
[1730122250174,23.776884,176.72,176.68,27.70356213]
[1730122250688,23.776884,176.72,176.7,27.70356213]
[1730122250966,23.776884,176.72,176.69,27.70356213]
[1730122251485,23.902374,176.74,176.7,27.70356213]
[1730122251774,27.70356213,176.76,176.61,0.1]
[1730122251775,27.70356213,176.76,176.71,27.70356213]
[1730122252975,23.776884,176.75,176.71,27.70356213]
[1730122253340,23.776884,176.76,176.71,27.70356213]
[1730122253543,0.12549,176.75,176.71,27.70356213]
[1730122254164,0.12549,176.75,176.7,27.70356213]
[1730122254866,0.12549,176.75,176.71,27.70356213]
[1730122255296,23.776884,176.76,176.73,27.70356213]
[1730122255796,23.776884,176.76,176.74,27.70356213]
[1730122256002,23.776884,176.76,176.67,27.70356213]
[1730122256003,23.776884,176.76,176.73,27.70356213]
[1730122256575,23.776884,176.75,176.7,27.70356213]
[1730122256793,51.48044613,176.75,176.69,27.70356213]
[1730122257002,23.776884,176.75,176.7,27.70356213]
[1730122257502,23.776884,176.75,176.71,27.70356213]
[1730122257704,23.902374,176.76,176.72,27.70356213]
[1730122258282,51.60593613,176.76,176.7,27.70356213]
[1730122258605,23.902374,176.74,176.69,27.70356213]
[1730122258912,23.902374,176.74,176.7,27.70356213]
[1730122259314,23.902374,176.74,176.71,27.70356213]
[1730122260293,23.902374,176.74,176.7,27.70356213]
[1730122260690,23.902374,176.74,176.71,27.70356213]
[1730122261021,23.776884,176.74,176.73,27.70356213]
[1730122262205,23.776884,176.74,176.72,27.70356213]
[1730122262741,23.776884,176.74,176.71,27.70356213]
[1730122263011,23.776884,176.74,176.7,27.70356213]
[1730122263605,23.776884,176.72,176.68,27.70356213]
[1730122263922,23.776884,176.7,176.65,27.70356213]
[1730122264102,23.776884,176.7,176.66,27.70356213]
[1730122265111,0.12549,176.71,176.67,27.70356213]
[1730122265112,23.902374,176.71,176.67,27.70356213]
[1730122265310,23.902374,176.71,176.65,27.70356213]
[1730122265311,75.90998,176.71,176.65,27.70356213]
[1730122265521,51.60593613,176.68,176.64,5.88274946]
[1730122265829,97.82905213,176.65,176.6,27.70356213]
[1730122266005,23.902374,176.64,176.61,5.88304545]
[1730122266206,23.902374,176.64,176.59,27.70356213]
[1730122266416,23.902374,176.62,176.58,27.70356213]
[1730122266617,23.902374,176.62,176.58,17.34011975]
[1730122267106,70.0,176.67,176.61,17.34011975]
[1730122267423,24.027864,176.66,176.61,17.34011975]
[1730122267618,41.36798375,176.66,176.61,17.34011975]
[1730122267805,0.12549,176.64,176.6,17.34011975]
[1730122268008,23.902374,176.64,176.6,17.34011975]
[1730122268215,23.902374,176.64,176.55,5.887477]
[1730122268216,23.902374,176.64,176.59,17.34011975]
[1730122268529,41.24249375,176.64,176.59,17.34011975]
[1730122269130,41.24249375,176.64,176.58,17.34011975]
[1730122269509,41.24249375,176.64,176.55,5.887477]
[1730122269510,23.902374,176.64,176.6,17.34011975]
[1730122270114,24.027864,176.66,176.61,17.34011975]
[1730122270621,41.36798375,176.66,176.6,17.34011975]
[1730122270809,23.902374,176.64,176.59,17.34011975]
[1730122271407,41.24249375,176.64,176.59,17.34011975]
[1730122271816,23.902374,176.62,176.57,17.34011975]
[1730122272831,23.776884,176.6,176.56,17.34011975]
[1730122273007,23.776884,176.6,176.5,16.3415]
[1730122273008,23.776884,176.6,176.57,17.34011975]
[1730122273207,82.20349,176.63,176.59,17.34011975]
[1730122273208,6.4165,176.63,176.59,17.34011975]
[1730122273417,23.776884,176.62,176.59,17.34011975]
[1730122275237,23.776884,176.63,176.6,17.34011975]
[1730122275435,0.12549,176.63,176.6,17.34011975]
[1730122275836,0.12549,176.63,176.59,17.34011975]
[1730122276005,23.776884,176.62,176.58,17.34011975]
[1730122276330,23.902374,176.64,176.6,17.34011975]
[1730122276530,23.902374,176.64,176.61,17.34011975]
[1730122276730,0.25098,176.66,176.61,17.34011975]
[1730122276935,24.027864,176.66,176.61,17.34011975]
[1730122277104,19.67311773,176.67,176.58,17.34011975]
[1730122277312,13.59731773,176.67,176.64,17.34011975]
[1730122277615,13.59731773,176.67,176.63,17.34011975]
[1730122277825,91.7195,176.71,176.66,17.34011975]
[1730122278039,91.7195,176.71,176.58,33.24521975]
[1730122278040,30.0,176.67,176.58,33.24521975]
[1730122278329,17.44011975,176.73,176.66,17.34011975]
[1730122278330,17.34011975,176.72,176.66,17.34011975]
[1730122278531,87.34011975,176.73,176.67,17.34011975]
[1730122278716,70.0,176.71,176.67,27.71348584]
[1730122278911,103.37148584,176.74,176.68,27.71348584]
[1730122279117,4.16922187,176.73,176.71,27.71348584]
[1730122279421,70.0,176.74,176.69,27.71348584]
[1730122279643,4.17009206,176.73,176.69,27.71348584]
[1730122279813,70.0,176.74,176.69,27.71348584]
[1730122281332,23.776884,176.73,176.69,27.71348584]
[1730122282234,23.776884,176.73,176.68,27.71348584]
[1730122282638,0.12549,176.7,176.66,27.71348584]
[1730122283132,0.12549,176.7,176.67,27.71348584]
[1730122283515,0.12549,176.7,176.66,27.71348584]
[1730122283707,0.12549,176.7,176.63,27.71348584]
[1730122283708,0.25098,176.68,176.63,27.71348584]
[1730122284027,0.25098,176.68,176.6,27.71348584]
[1730122284028,51.49036984,176.65,176.6,27.71348584]
[1730122284428,51.49036984,176.65,176.59,27.71348584]
[1730122284627,70.12549,176.66,176.59,27.71348584]
[1730122284628,23.776884,176.63,176.59,27.71348584]
[1730122284844,23.776884,176.61,176.57,27.71348584]
[1730122285419,23.776884,176.63,176.58,27.71348584]
[1730122285624,23.902374,176.64,176.6,27.71348584]
[1730122285929,23.902374,176.64,176.59,27.71348584]
[1730122286515,51.61585984,176.64,176.58,27.71348584]
[1730122287134,51.61585984,176.64,176.59,27.71348584]
[1730122288010,0.12549,176.64,176.59,27.71348584]
[1730122289321,0.12549,176.64,176.58,27.71348584]
[1730122289322,97.96446584,176.64,176.58,27.71348584]
[1730122289518,51.49036984,176.63,176.58,27.71348584]
[1730122290022,23.776884,176.63,176.59,27.71348584]
[1730122290426,23.902374,176.64,176.59,27.71348584]
[1730122291137,22.0664,176.67,176.56,5.88276958]
[1730122291138,33.75398584,176.67,176.61,27.71348584]
[1730122291314,97.71348584,176.7,176.64,27.71348584]
[1730122292020,42.88258584,176.71,176.65,27.71348584]
[1730122292435,47.94362653,176.72,176.66,27.71348584]
[1730122292614,34.35018584,176.72,176.66,27.71348584]
[1730122292820,34.35018584,176.72,176.67,27.71348584]
[1730122293735,27.71348584,176.72,176.67,27.71348584]
[1730122293920,27.71348584,176.72,176.66,27.71348584]
[1730122294617,27.71348584,176.71,176.65,27.71348584]
[1730122294830,23.776884,176.7,176.65,27.71348584]
[1730122295539,23.776884,176.7,176.67,27.71348584]
[1730122295843,23.776884,176.7,176.62,15.5838]
[1730122295844,23.776884,176.71,176.66,27.71348584]
[1730122296320,51.49036984,176.71,176.66,27.71348584]
[1730122296520,23.776884,176.71,176.66,27.71348584]
[1730122297458,51.49036984,176.71,176.66,27.71348584]
[1730122297640,51.49036984,176.71,176.62,15.5838]
[1730122297823,51.49036984,176.71,176.63,27.71348584]
[1730122297824,51.49036984,176.69,176.63,27.71348584]
[1730122298530,23.776884,176.69,176.64,27.71348584]
[1730122298725,23.776884,176.69,176.65,27.71348584]
[1730122300035,24.027864,176.72,176.67,27.71348584]
[1730122300544,17.44555206,176.72,176.67,17.32006206]
[1730122301244,87.32006206,176.74,176.68,17.32006206]
[1730122301455,4.16624726,176.73,176.69,17.32006206]
[1730122301743,0.12549,176.74,176.69,17.32006206]
[1730122301941,4.16662205,176.73,176.71,17.32006206]
[1730122302244,39.44146206,176.76,176.71,17.32006206]
[1730122302432,4.16797545,176.75,176.71,17.32006206]
[1730122302632,109.44146206,176.76,176.71,17.32006206]
[1730122302944,4.16801847,176.75,176.71,17.32006206]
[1730122303143,109.44146206,176.76,176.71,17.32006206]
[1730122303336,28.07052047,176.75,176.71,17.32006206]
[1730122303542,23.776884,176.76,176.72,17.32006206]
[1730122303847,23.776884,176.76,176.67,17.32006206]
[1730122303848,4.16889419,176.75,176.71,17.32006206]
[1730122304146,41.09694606,176.76,176.71,17.32006206]
[1730122304446,4.16886558,176.75,176.7,17.32006206]
[1730122304630,41.09694606,176.76,176.7,17.32006206]
[1730122304831,4.16921609,176.75,176.7,17.32006206]
[1730122305042,41.09694606,176.76,176.7,17.32006206]
[1730122305245,4.16921425,176.75,176.7,17.32006206]
[1730122305436,23.776884,176.74,176.69,17.32006206]
[1730122305638,41.09694606,176.74,176.68,17.32006206]
[1730122305945,23.776884,176.74,176.69,17.32006206]
[1730122306941,0.25098,176.77,176.72,17.32006206]
[1730122307126,4.16951962,176.76,176.72,17.32006206]
[1730122307327,4.16951962,176.75,176.73,17.32006206]
[1730122307533,23.902374,176.77,176.73,17.32006206]
[1730122309328,23.776884,176.75,176.71,17.32006206]
[1730122309626,41.09694606,176.75,176.7,17.32006206]
[1730122310027,41.09694606,176.75,176.71,17.32006206]
[1730122310028,23.776884,176.75,176.71,17.32006206]
[1730122310343,23.776884,176.76,176.71,17.32006206]
[1730122311044,17.32006206,176.74,176.63,15.1076]
[1730122311250,23.776884,176.74,176.7,17.32006206]
[1730122311855,23.776884,176.75,176.71,17.32006206]
[1730122312632,23.776884,176.77,176.73,17.32006206]
[1730122312848,4.17052905,176.76,176.73,17.32006206]
[1730122313050,4.17052905,176.76,176.74,17.32006206]
[1730122313256,23.776884,176.77,176.74,17.32006206]
[1730122313759,13.58919325,176.78,176.76,17.32006206]
[1730122313940,13.58919325,176.78,176.77,17.32006206]
[1730122314250,13.58919325,176.78,176.74,17.32006206]
[1730122314460,13.58919325,176.78,176.73,17.32006206]
[1730122314648,13.58919325,176.78,176.69,15.7112]
[1730122314649,83.58919325,176.78,176.65,21.56759962]
[1730122314833,17.32006206,176.73,176.68,17.32006206]
[1730122315030,17.32006206,176.73,176.67,17.32006206]
[1730122315348,41.09694606,176.7,176.64,17.32006206]
[1730122315549,23.776884,176.7,176.65,17.32006206]
[1730122315861,41.09694606,176.7,176.62,5.88147774]
[1730122316154,41.09694606,176.68,176.62,17.32006206]
[1730122316526,17.32006206,176.67,176.62,17.32006206]
[1730122316726,17.32006206,176.66,176.6,23.19993641]
[1730122316940,41.22243606,176.65,176.6,23.19993641]
[1730122317147,41.22243606,176.65,176.56,15.5652]
[1730122317148,41.22243606,176.65,176.59,17.32006206]
[1730122317453,17.32006206,176.64,176.58,17.32006206]
[1730122317659,23.776884,176.63,176.58,17.32006206]
[1730122318744,23.902374,176.65,176.61,17.32006206]
[1730122319057,17.32006206,176.64,176.59,17.32006206]
[1730122319234,23.776884,176.63,176.58,17.32006206]
[1730122319435,23.776884,176.63,176.57,23.20085162]
[1730122319436,41.09694606,176.63,176.57,23.20085162]
[1730122319760,17.32006206,176.62,176.57,5.88078956]
[1730122320074,17.32006206,176.61,176.55,17.32006206]
[1730122320229,41.09694606,176.6,176.55,23.19371006]
[1730122320432,41.09694606,176.6,176.54,17.32006206]
[1730122320657,23.776884,176.6,176.55,17.32006206]
[1730122320960,23.776884,176.6,176.56,17.32006206]
[1730122321330,17.32006206,176.63,176.57,17.32006206]
[1730122321665,23.776884,176.62,176.58,17.32006206]
[1730122321955,23.902374,176.63,176.58,17.32006206]
[1730122322751,23.902374,176.63,176.59,17.32006206]
[1730122322954,17.32006206,176.66,176.6,17.32006206]
[1730122323253,17.32006206,176.64,176.59,17.32006206]
[1730122323640,17.32006206,176.65,176.6,17.32006206]
[1730122323847,17.32006206,176.66,176.6,17.32006206]
[1730122324055,17.32006206,176.65,176.6,17.32006206]
[1730122324363,17.32006206,176.64,176.58,17.32006206]
[1730122324537,23.776884,176.63,176.58,17.32006206]
[1730122324736,41.09694606,176.63,176.58,17.32006206]
[1730122324941,17.32006206,176.65,176.6,17.32006206]
[1730122325158,23.776884,176.65,176.6,17.32006206]
[1730122325459,17.32006206,176.65,176.59,17.32006206]
[1730122325651,17.32006206,176.63,176.58,17.32006206]
[1730122325859,17.32006206,176.62,176.56,17.32006206]
[1730122326040,70.0,176.67,176.61,17.32006206]
[1730122326245,17.32006206,176.66,176.61,17.32006206]
[1730122326443,17.32006206,176.65,176.59,17.32006206]
[1730122326846,17.32006206,176.65,176.6,17.32006206]
[1730122327242,17.32006206,176.65,176.59,17.32006206]
[1730122327570,17.44555206,176.63,176.58,17.32006206]
[1730122327866,23.776884,176.62,176.57,17.32006206]
[1730122328370,41.09694606,176.62,176.57,17.32006206]
[1730122328552,23.776884,176.62,176.57,17.32006206]
[1730122329164,23.776884,176.61,176.57,17.32006206]
[1730122329662,17.32006206,176.65,176.59,17.32006206]
[1730122329866,23.776884,176.64,176.6,17.32006206]
[1730122330290,23.776884,176.64,176.59,17.32006206]
[1730122330955,17.32006206,176.64,176.59,17.32006206]
[1730122331149,17.32006206,176.64,176.58,17.32006206]
[1730122331783,17.32006206,176.62,176.56,17.32006206]
[1730122332066,17.32006206,176.62,176.57,17.32006206]
[1730122332269,17.44555206,176.63,176.58,17.32006206]
[1730122332468,23.776884,176.62,176.58,17.32006206]
[1730122333147,23.776884,176.62,176.57,17.32006206]
[1730122333547,41.09694606,176.62,176.56,17.32006206]
[1730122334052,41.09694606,176.62,176.57,17.32006206]
[1730122334664,23.776884,176.62,176.57,17.32006206]
[1730122334851,23.902374,176.63,176.58,17.32006206]
[1730122335052,23.902374,176.63,176.59,17.32006206]
[1730122336953,17.32006206,176.65,176.59,17.32006206]
[1730122337267,23.902374,176.65,176.61,17.32006206]
[1730122337566,17.32006206,176.67,176.62,17.32006206]
[1730122337787,17.32006206,176.67,176.61,17.32006206]
[1730122338148,17.32006206,176.66,176.61,17.32006206]
[1730122338874,41.09694606,176.65,176.6,17.32006206]
[1730122339163,70.0,176.68,176.53,5.87975359]
[1730122339164,41.09694606,176.63,176.58,17.32006206]
[1730122339372,41.09694606,176.63,176.57,17.32006206]
[1730122339674,17.32006206,176.6,176.55,17.32006206]
[1730122339848,17.32006206,176.61,176.55,17.32006206]
[1730122340379,17.32006206,176.61,176.56,17.32006206]
[1730122341755,17.32006206,176.61,176.54,5.87632912]
[1730122341756,23.776884,176.6,176.55,17.32006206]
[1730122342848,23.776884,176.62,176.59,17.32006206]
[1730122343059,23.776884,176.62,176.58,17.32006206]
[1730122344169,23.776884,176.63,176.59,17.32006206]
[1730122344375,23.776884,176.64,176.6,17.32006206]
[1730122344780,87.32006206,176.68,176.63,17.32006206]
[1730122344953,23.52096206,176.71,176.66,17.32006206]
[1730122345277,13.59247303,176.73,176.7,17.32006206]
[1730122345470,13.59247303,176.73,176.65,15.092]
[1730122346363,6.4337,176.79,176.66,6.73769]
[1730122346566,4.16552005,176.78,176.67,0.1]
[1730122346870,4.16552005,176.77,176.75,17.32006206]
[1730122347051,76.4337,176.79,176.74,17.32006206]
[1730122347253,4.16551227,176.78,176.74,17.32006206]
[1730122347453,4.16551227,176.77,176.74,17.32006206]
[1730122347679,20.56006206,176.82,176.76,17.32006206]
[1730122347849,80.83000807,176.81,176.76,17.32006206]
[1730122348176,4.16538772,176.8,176.77,17.32006206]
[1730122348366,4.16538772,176.79,176.77,17.32006206]
[1730122348688,17.32006206,176.81,176.76,17.32006206]
[1730122348854,4.16518661,176.8,176.76,17.32006206]
[1730122349065,17.32006206,176.82,176.77,17.32006206]
[1730122349271,10.82960203,176.81,176.77,17.32006206]
[1730122349475,4.16523155,176.8,176.77,17.32006206]
[1730122349666,23.902374,176.82,176.77,17.32006206]
[1730122349989,4.1645248,176.81,176.77,17.32006206]
[1730122350302,4.1645248,176.8,176.78,17.32006206]
[1730122350583,23.902374,176.82,176.77,17.32006206]